bitfinex/quotes_ETHUSD_20240730
["timestamp","ask_amount","ask_price","bid_price","bid_amount"]
[1722363318134,3.02957,3300.8,3300.3,35.0]
[1722363318349,3.02975,3300.6,3300.3,35.0]
[1722363318500,3.02974,3300.7,3300.3,35.0]
[1722363318501,3.02984,3300.5,3300.3,35.0]
[1722363319137,3.03007,3300.3,3299.6,3.03066]
[1722363319355,3.03007,3300.3,3299.6,3.894272]
[1722363319652,3.03021,3300.1,3299.7,35.0]
[1722363320001,3.03008,3300.3,3299.7,35.0]
[1722363320199,3.0299,3300.5,3299.8,3.09108222]
[1722363320403,3.0299,3300.5,3299.8,3.03048]
[1722363320603,3.03008,3300.3,3299.7,0.58102596]
[1722363320844,3.03025,3300.1,3299.8,35.0]
[1722363321359,5.970654,3300.7,3299.8,35.0]
[1722363321360,3.02988,3300.5,3299.8,35.0]
[1722363321651,22.89942,3301.0,3300.0,3.03029]
[1722363321652,6.05925,3300.8,3300.0,3.03029]
[1722363321831,7.39,3301.0,3300.0,6.07924288]
[1722363321832,3.02947,3300.9,3300.0,6.07924288]
[1722363322161,5.42737,3301.3,3300.5,3.02981]
[1722363322306,3.02917,3301.3,3300.6,0.06058733]
[1722363322508,3.0292,3301.2,3300.6,0.06058733]
[1722363322707,3.0292,3301.2,3300.7,35.0]
[1722363323102,7.39,3301.5,3300.8,3.09010733]
[1722363323346,3.02902,3301.4,3300.8,0.06058733]
[1722363323720,3.0294,3301.0,3300.7,37.20003817]
[1722363324024,3.02925,3301.2,3300.7,35.0]
[1722363324205,8.37546,3301.5,3300.8,0.06058696]
[1722363324557,3.02903,3301.4,3300.7,35.0]
[1722363324853,3.02914,3301.3,3300.7,35.0]
[1722363325907,3.02932,3301.1,3300.7,35.0]
[1722363326145,3.02905,3301.4,3300.7,35.0]
[1722363326350,3.02956,3300.8,3300.7,35.0]
[1722363326803,3.0295,3300.9,3300.7,35.0]
[1722363327244,7.39,3301.5,3300.7,35.0]
[1722363327459,3.02956,3300.8,3300.7,35.0]
[1722363327671,5.51446,3300.8,3300.7,35.0]
[1722363327953,5.51446,3300.8,3299.7,7.35]
[1722363327954,6.05998,3300.4,3299.7,7.35]
[1722363328271,3.02998,3300.4,3299.8,35.0]
[1722363328459,5.51451,3300.8,3299.8,35.0]
[1722363328750,3.0303,3300.0,3299.8,35.0]
[1722363328965,3.03017,3300.2,3299.8,35.0]
[1722363328966,3.03018,3300.2,3299.8,35.0]
[1722363329252,3.02999,3300.4,3299.8,35.0]
[1722363329409,3.03008,3300.3,3299.8,35.0]
[1722363329826,3.02999,3300.4,3299.8,35.0]
[1722363330554,3.02989,3300.5,3299.9,0.50792832]
[1722363330738,3.02989,3300.5,3299.8,38.03043]
[1722363331105,3.02993,3300.4,3299.8,35.0]
[1722363331349,3.03003,3300.3,3299.8,35.0]
[1722363331549,0.303003,3300.2,3299.8,35.0]
[1722363331758,3.03034,3300.0,3299.8,35.0]
[1722363331963,3.03021,3300.1,3299.8,35.0]
[1722363332511,3.03008,3300.3,3299.8,35.0]
[1722363333005,3.0299,3300.5,3299.8,35.0]
[1722363333210,3.0299,3300.5,3299.8,38.04901288]
[1722363333635,3.0299,3300.5,3299.9,0.06059836]
[1722363333838,3.02978,3300.6,3299.9,0.06059836]
[1722363334471,3.02978,3300.6,3299.9,3.09094836]
[1722363334677,3.02985,3300.5,3299.9,3.03035]
[1722363334982,3.02974,3300.7,3300.0,0.06059841]
[1722363335191,3.02962,3300.8,3300.0,3.10961129]
[1722363335390,10.41948,3300.9,3300.1,3.0302]
[1722363335903,10.41948,3300.9,3299.8,2.4173]
[1722363335904,7.39,3300.9,3300.2,35.06059181]
[1722363336177,3.02961,3300.8,3300.3,0.06059182]
[1722363336397,10.41947,3300.9,3300.3,0.06059182]
[1722363336683,7.39,3300.9,3300.3,0.06059182]
[1722363336900,7.39,3300.9,3300.3,6.1396247]
[1722363337387,3.02916,3301.3,3300.5,3.02975]
[1722363337551,3.02916,3301.3,3300.6,3.09032628]
[1722363337752,3.02921,3301.2,3300.6,0.06058628]
[1722363338288,3.02916,3301.3,3300.6,3.02973]
[1722363338580,3.0292,3301.2,3300.6,0.302973]
[1722363338785,3.0292,3301.2,3300.3,3.04901288]
[1722363338786,3.02934,3301.1,3300.3,3.02996]
[1722363338955,7.39,3301.6,3300.6,3.0297]
[1722363339156,3.02927,3301.2,3300.5,3.02984]
[1722363339355,3.02951,3300.9,3300.2,38.03007]
[1722363339779,0.98179,3301.5,3300.2,35.0]
[1722363340082,3.02907,3301.4,3300.3,3.02997]
[1722363340381,3.02926,3301.2,3300.5,3.02976]
[1722363340566,3.02926,3301.2,3300.3,3.02994]
[1722363340567,3.02939,3301.0,3300.3,3.02994]
[1722363340772,3.0298,3300.6,3300.2,35.0]
[1722363341455,3.02959,3300.8,3300.2,35.0]
[1722363342243,3.02906,3301.4,3300.4,3.02986]
[1722363342492,3.02911,3301.3,3300.5,3.02977]
[1722363342696,3.02899,3301.5,3300.6,3.09025388]
[1722363343010,3.02902,3301.4,3300.7,0.61200239]
[1722363343496,10.41891,3301.6,3300.8,0.06058389]
[1722363343646,3.02907,3301.4,3300.7,3.02820239]
[1722363343950,3.02907,3301.4,3300.9,35.0]
[1722363344153,3.02921,3301.2,3300.9,35.0]
[1722363344683,3.02899,3301.5,3300.9,35.0]
[1722363344893,3.02899,3301.5,3300.9,38.04901288]
[1722363345244,10.41889,3301.6,3300.9,41.07847288]
[1722363345445,3.02892,3301.5,3300.9,38.04901288]
[1722363345742,3.02893,3301.5,3300.9,38.04901288]
[1722363345942,7.39,3301.6,3301.0,0.06058173]
[1722363346165,7.39,3301.6,3301.0,6.13897461]
[1722363346585,7.39,3301.6,3301.0,3.10959461]
[1722363346988,10.41884,3301.6,3301.0,3.10959461]
[1722363347146,7.39,3301.6,3300.9,38.04901288]
[1722363347350,3.02929,3301.1,3300.9,35.0]
[1722363347576,3.02938,3301.0,3300.9,35.0]
[1722363348087,3.02921,3301.2,3300.9,35.0]
[1722363348287,3.02931,3301.1,3300.9,35.0]
[1722363348675,3.0292,3301.2,3300.9,35.0]
[1722363349081,3.02911,3301.3,3300.9,35.0]
[1722363349280,7.39,3301.6,3300.9,35.0]
[1722363349586,3.02902,3301.4,3300.9,35.0]
[1722363350003,10.41887,3301.6,3301.0,0.06058179]
[1722363350161,10.41887,3301.6,3300.9,38.02945]
[1722363350562,7.39,3301.6,3301.0,3.0899498]
[1722363351108,7.39,3301.6,3301.1,3.02928]
[1722363351401,3.02869,3301.8,3301.1,3.02928]
[1722363351604,7.39,3302.0,3301.2,3.08970963]
[1722363351773,7.39,3302.0,3301.3,0.60208368]
[1722363351774,3.02858,3301.9,3301.3,0.60208368]
[1722363351979,10.41848,3302.0,3301.4,3.02901]
[1722363352176,7.39,3302.0,3301.5,0.06057107]
[1722363352366,7.39,3302.0,3301.6,3.02882]
[1722363352558,7.39,3302.0,3301.5,0.06057107]
[1722363352792,7.39,3302.0,3301.5,0.72657327]
[1722363353005,12.48,3302.5,3301.5,0.72657327]
[1722363353006,3.02801,3302.5,3301.5,0.72657327]
[1722363353262,3.02801,3302.5,3301.1,2.3254]
[1722363353263,3.02805,3302.5,3301.8,3.02864]
[1722363353460,3.02814,3302.4,3301.9,0.06056259]
[1722363353774,0.302814,3302.3,3301.6,3.02882]
[1722363353986,3.02831,3302.2,3302.0,35.0]
[1722363354196,3.02815,3302.4,3302.0,35.0]
[1722363354524,3.02829,3302.2,3302.0,35.0]
[1722363355026,3.02815,3302.4,3302.0,35.0]
[1722363355199,3.02819,3302.3,3302.0,35.0]
[1722363355786,6.05674,3302.1,3302.0,35.0]
[1722363355999,3.02852,3302.0,3301.2,3.02914]
[1722363356200,3.02837,3302.1,3301.1,2.3254]
[1722363356379,3.02837,3302.1,3301.4,3.02893]
[1722363356585,3.02837,3302.1,3301.5,35.0]
[1722363357177,3.02863,3301.9,3301.5,35.0]
[1722363357680,3.02866,3301.8,3301.5,35.0]
[1722363358016,0.6359415,3302.1,3301.5,35.0]
[1722363358020,3.02883,3301.6,3301.5,35.0]
[1722363358379,3.02874,3301.7,3301.5,35.0]
[1722363358570,6.05766,3301.6,3301.5,35.0]
[1722363358937,3.02911,3301.3,3300.4,7.35]
[1722363359220,3.02917,3301.3,3300.7,35.0]
[1722363359531,3.02903,3301.4,3300.7,35.0]
[1722363359713,7.39,3301.5,3300.8,3.02949]
[1722363360013,7.39,3301.5,3300.9,3.02942]
[1722363360201,7.39,3301.5,3300.8,3.02949]
[1722363360369,10.41897,3301.5,3300.8,3.02949]
[1722363361067,7.39,3301.5,3300.9,0.06058162]
[1722363361268,7.39,3301.5,3301.1,3.02927]
[1722363361471,7.39,3302.1,3300.3,12.99641]
[1722363361707,3.02902,3301.4,3301.2,35.0]
[1722363362273,7.39,3302.1,3301.2,35.0]
[1722363362502,3.02891,3301.6,3301.2,35.0]
[1722363362706,3.02893,3301.5,3301.2,35.0]
[1722363362913,0.739,3302.0,3301.2,35.0]
[1722363362914,3.0287,3301.8,3301.2,35.0]
[1722363363119,3.0288,3301.7,3301.2,35.0]
[1722363363536,3.02865,3301.8,3301.2,35.0]
[1722363363816,3.0288,3301.7,3301.2,35.0]
[1722363363976,7.39,3302.1,3301.3,0.06058124]
[1722363363977,3.02858,3301.9,3301.3,0.06058124]
[1722363364309,3.02869,3301.8,3301.2,36.0327385]
[1722363364513,3.02868,3301.8,3301.2,35.0]
[1722363365302,3.02882,3301.7,3301.2,35.0]
[1722363365485,3.02868,3301.8,3301.2,35.0]
[1722363365672,3.02847,3302.0,3301.3,3.08967501]
[1722363365879,3.02866,3301.8,3301.3,0.06057501]
[1722363366180,3.02866,3301.8,3301.2,35.0]
[1722363366698,3.02847,3302.0,3301.3,3.02906]
[1722363366904,3.02861,3301.9,3301.2,38.02919]
[1722363367087,7.39,3302.1,3301.5,3.02892]
[1722363367307,7.39,3302.6,3301.9,3.02849]
[1722363367508,7.39,3302.6,3301.9,3.02855]
[1722363367710,7.39,3302.6,3302.0,3.08898071]
[1722363367912,3.02783,3302.7,3302.0,35.06056071]
[1722363368225,8.44802,3302.9,3302.0,38.10957359]
[1722363368385,3.02769,3302.9,3302.1,3.02831]
[1722363368586,6.05541,3302.9,3302.1,3.08887068]
[1722363368782,22.89755,3303.0,3302.3,3.02819]
[1722363368984,22.89755,3303.0,3302.1,3.08887068]
[1722363368985,3.02755,3303.0,3302.4,35.0]
[1722363369187,3.02745,3303.2,3302.4,35.0]
[1722363369427,3.02755,3303.0,3302.4,35.0]
[1722363369650,3.02765,3302.9,3302.4,35.0]
[1722363370333,3.02732,3303.3,3302.5,3.08855461]
[1722363370516,7.39,3303.4,3302.4,38.02802]
[1722363370832,3.02749,3303.1,3302.4,38.02809]
[1722363371136,3.02735,3303.3,3302.4,38.02802]
[1722363371345,3.02739,3303.2,3302.4,35.0]
[1722363371641,7.39,3303.4,3302.7,3.02781]
[1722363371937,7.39,3303.4,3303.0,3.02753]
[1722363372089,0.1459378,3303.5,3303.1,3.08799443]
[1722363372288,0.1459378,3303.5,3303.0,3.02753]
[1722363372289,0.1459378,3303.5,3302.9,3.02756]
[1722363372489,0.1459378,3303.5,3303.0,3.02755]
[1722363372756,3.1730278,3303.5,3303.2,35.0]
[1722363372894,3.02727,3303.3,3303.2,35.0]
[1722363373089,3.02724,3303.4,3303.2,35.0]
[1722363374323,0.1459378,3303.5,3303.2,35.0]
[1722363374488,3.1730478,3303.5,3303.2,35.0]
[1722363374918,0.1459378,3303.5,3303.2,35.0]
[1722363375558,3.02724,3303.4,3302.6,2.3654]
[1722363375759,3.02733,3303.3,3302.6,5.39331]
[1722363375962,3.1730878,3303.5,3302.6,5.39331]
[1722363376163,3.1730878,3303.5,3302.7,35.0]
[1722363376323,3.02718,3303.4,3302.7,35.0]
[1722363376519,0.1459378,3303.5,3302.7,36.48150502]
[1722363376722,0.1459378,3303.5,3302.8,3.02772]
[1722363377151,0.1459378,3303.5,3302.9,3.02763]
[1722363377359,0.1459378,3303.5,3303.0,35.0]
[1722363377572,0.1459378,3303.5,3303.0,38.02748]
[1722363377737,0.1459378,3303.5,3303.0,35.0]
[1722363378577,3.02721,3303.4,3303.0,35.0]
[1722363378754,0.46323658,3303.5,3303.0,35.0]
[1722363379274,0.1459378,3303.5,3303.0,35.0]
[1722363379430,3.02718,3303.4,3303.0,35.0]
[1722363379626,0.1459378,3303.5,3303.0,35.0]
[1722363380170,2.4261378,3303.5,3302.3,3.02813]
[1722363380371,3.02738,3303.2,3302.4,3.02805]
[1722363380665,3.02773,3302.9,3302.5,35.0]
[1722363380869,3.02773,3302.8,3302.5,35.0]
[1722363381181,3.02817,3302.4,3301.6,5.48202]
[1722363381359,3.02793,3302.6,3301.8,3.02863]
[1722363381527,3.02848,3302.0,3301.2,3.02918]
[1722363381723,3.02831,3302.2,3301.4,3.02893]
[1722363382025,3.02794,3302.6,3301.3,0.548238]
[1722363382275,9.972973,3302.8,3301.5,35.0]
[1722363382276,3.02828,3302.2,3301.5,35.0]
[1722363382507,3.02872,3301.8,3301.5,35.0]
[1722363383100,3.02819,3302.3,3301.5,35.0]
[1722363383101,3.02861,3301.9,3301.5,35.0]
[1722363383503,3.0286,3301.9,3301.5,35.0]
[1722363383911,3.02875,3301.7,3301.5,35.0]
[1722363384115,3.02883,3301.6,3301.5,35.0]
[1722363384326,3.02878,3301.7,3300.7,0.3042]
[1722363384478,3.0293,3301.1,3300.7,0.3042]
[1722363384825,7.39,3301.8,3300.8,35.0]
[1722363384826,6.05901,3300.9,3300.8,35.0]
[1722363385023,6.05901,3300.9,3300.7,0.3042]
[1722363385024,6.63083,3301.6,3300.7,0.3042]
[1722363385206,3.02906,3301.4,3299.9,0.3042]
[1722363385372,3.02925,3301.2,3300.5,0.3042]
[1722363385821,3.0293,3301.1,3300.5,0.3042]
[1722363386130,3.02925,3301.2,3300.5,0.3042]
[1722363386318,3.02925,3301.2,3300.5,3.970444]
[1722363386474,3.02925,3301.2,3300.5,0.940614]
[1722363386824,3.02929,3301.1,3300.5,0.940614]
[1722363386972,10.41906,3301.4,3300.3,0.3042]
[1722363387173,10.41906,3301.4,3300.5,3.33399]
[1722363387174,6.0583,3301.3,3300.5,3.33399]
[1722363387387,6.0583,3301.3,3300.2,38.03007]
[1722363387388,3.02913,3301.3,3300.7,0.3042]
[1722363387619,3.02935,3301.1,3300.7,0.3042]
[1722363387775,3.02913,3301.3,3300.7,0.3042]
[1722363388422,3.02913,3301.3,3300.4,0.3042]
[1722363388588,3.02913,3301.3,3300.6,0.3042]
[1722363388790,3.02946,3301.0,3300.6,0.3042]
[1722363388977,3.02954,3300.9,3300.6,0.3042]
[1722363389176,3.02936,3301.1,3300.6,0.3042]
[1722363389391,3.02948,3300.9,3300.6,0.3042]
[1722363389592,3.02951,3300.9,3300.7,0.3042]
[1722363389977,3.02956,3300.8,3300.7,0.3042]
[1722363391463,9.08868,3300.8,3300.7,0.3042]
[1722363391762,6.05912,3300.8,3300.7,0.3042]
[1722363392058,9.08868,3300.8,3300.7,0.3042]
[1722363392219,6.05912,3300.8,3300.7,0.3042]
[1722363392620,3.02979,3300.6,3300.3,0.3042]
[1722363393691,3.02989,3300.5,3300.3,0.3042]
[1722363393818,3.02979,3300.6,3300.3,0.3042]
[1722363394265,6.05961,3300.6,3300.3,0.3042]
[1722363394570,3.02985,3300.5,3300.3,0.3042]
[1722363395667,3.02966,3300.7,3299.9,0.3042]
[1722363395858,3.02979,3300.6,3299.9,0.3042]
[1722363396053,3.02979,3300.6,3300.1,0.3042]
[1722363396279,3.03001,3300.4,3300.1,0.3042]
[1722363396937,3.03001,3300.4,3300.3,0.3042]
[1722363397505,6.05999,3300.4,3300.3,0.3042]
[1722363397667,6.665989,3300.4,3300.3,35.3042]
[1722363398579,3.03016,3300.2,3299.4,3.03085]
[1722363398750,3.03016,3300.2,3299.2,5.37933]
[1722363398751,3.03016,3300.2,3299.3,3.03094]
[1722363398945,3.03037,3300.0,3299.3,35.0]
[1722363399144,3.03037,3300.0,3299.4,3.04901288]
[1722363399349,10.41995,3300.4,3299.4,3.04901288]
[1722363399350,3.03017,3300.2,3299.5,3.0307]
[1722363399780,10.41996,3300.4,3299.5,3.03068]
[1722363399962,10.41996,3300.4,3299.6,35.0]
[1722363400260,7.39,3300.4,3299.7,3.03053]
[1722363400461,10.41995,3300.4,3299.7,3.03057]
[1722363400751,10.41995,3300.4,3299.5,3.333758]
[1722363400752,3.03007,3300.3,3299.5,3.333758]
[1722363400992,3.03007,3300.3,3299.6,3.3640358]
[1722363401482,3.03007,3300.3,3299.6,3.3639658]
[1722363401791,3.03009,3300.3,3299.6,3.3639858]
[1722363401997,3.03013,3300.2,3299.6,3.3639858]
[1722363402163,3.03003,3300.3,3299.6,3.3639658]
[1722363402647,3.03012,3300.2,3299.6,0.3333758]
[1722363402851,3.03022,3300.1,3299.4,3.0308]
[1722363403055,3.03003,3300.3,3299.5,3.03074]
[1722363403254,3.03018,3300.2,3299.5,3.03074]
[1722363404187,3.03018,3300.2,3299.5,3.0307]
[1722363404346,3.03018,3300.2,3299.6,0.30307]
[1722363405029,10.41998,3300.4,3299.6,0.30307]
[1722363405030,3.03021,3300.1,3299.6,0.30307]
[1722363405180,3.03045,3299.9,3299.2,3.03101]
[1722363405580,3.03058,3299.7,3299.1,3.0311]
[1722363405999,6.06092,3299.9,3299.1,3.0311]
[1722363406216,3.03058,3299.7,3299.2,0.30311]
[1722363406528,3.03037,3300.0,3298.8,5.34334]
[1722363406825,3.0305,3299.8,3298.9,0.3042]
[1722363407028,3.03064,3299.7,3299.0,3.29279]
[1722363407231,3.03049,3299.8,3299.1,3.03108]
[1722363407382,3.03049,3299.8,3299.0,0.26162]
[1722363407591,3.03066,3299.7,3299.0,3.29283]
[1722363407809,3.0311,3299.2,3298.3,2.4646]
[1722363408035,3.03088,3299.4,3298.5,3.03162]
[1722363408036,7.39,3299.4,3298.5,3.03162]
[1722363408346,7.39,3299.4,3298.7,3.03144]
[1722363408509,7.39,3299.4,3298.6,0.303162]
[1722363408714,7.39,3299.4,3298.9,3.03126]
[1722363409038,7.39,3299.4,3298.6,6.366252]
[1722363409245,7.39,3299.4,3298.7,3.03144]
[1722363409448,7.39,3299.4,3298.7,3.3649002]
[1722363409737,7.39,3299.4,3298.7,3.3648702]
[1722363410030,7.39,3299.4,3298.3,5.49643]
[1722363410031,7.39,3299.4,3298.4,3.03176]
[1722363410217,7.39,3299.4,3298.3,2.4646]
[1722363410218,3.03118,3299.1,3298.3,2.4646]
[1722363410423,3.03142,3298.8,3298.1,3.03197]
[1722363410730,3.03136,3298.9,3297.9,3.03215]
[1722363411094,3.03141,3298.8,3298.0,3.03208]
[1722363411292,3.03127,3299.0,3298.2,3.03194]
[1722363411495,3.03127,3299.0,3298.3,3.03181]
[1722363411746,3.03132,3298.9,3298.1,3.03197]
[1722363411904,3.03142,3298.8,3298.1,3.638385]
[1722363412423,3.0315,3298.7,3298.1,0.606415]
[1722363412852,3.03138,3298.9,3298.1,3.638435]
[1722363413049,5.38961,3299.1,3298.3,3.03183]
[1722363413228,7.39,3299.4,3298.6,3.03152]
[1722363413229,10.42089,3299.4,3298.6,3.03152]
[1722363413430,3.03106,3299.2,3298.4,3.09233863]
[1722363413652,3.03106,3299.2,3298.4,3.77156684]
[1722363413653,3.03113,3299.1,3298.4,3.77156684]
[1722363413866,3.03106,3299.2,3298.4,3.71099821]
[1722363414226,3.03106,3299.2,3298.5,3.03167]
[1722363414575,7.39,3299.4,3298.5,0.06062728]
[1722363414721,3.03095,3299.3,3298.6,3.03158]
[1722363414917,7.39,3299.4,3298.7,3.03144]
[1722363415264,7.39,3299.4,3298.5,0.43778483]
[1722363415265,3.03105,3299.2,3298.5,3.71297755]
[1722363415432,3.03095,3299.3,3298.5,3.71297755]
[1722363416031,3.03105,3299.2,3298.5,3.71297755]
[1722363416558,10.42085,3299.4,3298.5,3.71297755]
[1722363416774,7.39,3299.4,3298.7,3.03143]
[1722363417065,7.39,3299.4,3298.9,3.03126]
[1722363417571,7.39,3299.4,3298.8,3.0314]
[1722363417731,7.39,3299.4,3298.6,3.40893048]
[1722363417732,7.39,3299.4,3298.6,3.46955478]
[1722363417937,10.4209,3299.4,3298.6,3.40893048]
[1722363418263,3.03113,3299.1,3298.3,3.33603]
[1722363418685,3.03122,3299.0,3298.3,3.33603]
[1722363418889,2.4353,3299.2,3298.6,3.03158]
[1722363419172,6.06196,3299.3,3298.6,3.03158]
[1722363419376,3.03122,3299.0,3298.3,3.33606]
[1722363419529,3.03122,3299.0,3298.4,3.03176]
[1722363419728,3.0311,3299.2,3298.5,3.03167]
[1722363419964,3.0311,3299.2,3298.3,3.972805]
[1722363419965,3.03109,3299.2,3298.3,3.972805]
[1722363420192,3.03128,3299.0,3298.3,3.972805]
[1722363420485,3.03128,3299.0,3298.3,3.972795]
[1722363420848,3.03142,3298.8,3298.0,0.3042]
[1722363421051,3.03142,3298.8,3298.0,3.33629]
[1722363421052,3.03151,3298.7,3298.0,3.33629]
[1722363421253,3.03164,3298.6,3297.8,0.3042]
[1722363421469,2.2672,3298.8,3297.8,0.333655]
[1722363421640,3.03165,3298.6,3297.6,3.0325]
[1722363421985,3.03165,3298.6,3297.5,12.67833]
[1722363421986,3.03182,3298.4,3297.7,3.03235]
[1722363422200,3.03182,3298.4,3297.7,0.3042]
[1722363422358,3.0319,3298.3,3297.6,3.0325]
[1722363422559,3.0319,3298.3,3297.6,4.04139953]
[1722363422759,3.03209,3298.1,3297.4,1.72800529]
[1722363423088,3.03214,3298.0,3297.4,1.72800529]
[1722363423271,3.03248,3297.7,3297.4,1.72800529]
[1722363423585,6.0652,3297.5,3297.4,1.72800529]
[1722363424373,11.4257,3297.5,3297.4,1.72800529]
[1722363424566,8.3931,3297.5,3297.4,1.72800529]
[1722363425182,2.3279,3297.5,3297.4,1.72800529]
[1722363425386,5.3605,3297.5,3297.4,1.72800529]
[1722363426000,2.3279,3297.5,3297.4,1.72800529]
[1722363426404,5.41131,3298.1,3297.4,1.72800529]
[1722363426577,2.3792,3298.1,3297.4,1.72800529]
[1722363426774,3.03259,3297.6,3297.4,1.72800529]
[1722363427082,8.4113,3298.1,3297.4,1.72800529]
[1722363427412,7.39,3298.2,3297.4,4.76069529]
[1722363427413,10.422,3298.2,3297.4,4.76069529]
[1722363427616,3.03237,3297.8,3297.4,1.72800529]
[1722363427815,3.03219,3298.0,3297.4,1.72800529]
[1722363428014,3.03238,3297.8,3297.4,1.72800529]
[1722363428376,3.03224,3297.9,3297.4,1.72800529]
[1722363428573,3.03238,3297.8,3297.4,1.72800529]
[1722363428883,0.606441,3297.9,3297.4,1.72800529]
[1722363429083,3.03255,3297.6,3297.4,1.72800529]
[1722363429488,3.0326,3297.5,3297.4,1.72800529]
[1722363430197,6.0652,3297.5,3297.4,1.72800529]
[1722363430823,2.3614,3297.7,3297.4,1.72800529]
[1722363431036,3.03207,3298.1,3297.4,1.90080582]
[1722363431312,3.03205,3298.1,3297.4,1.90080582]
[1722363431672,7.39,3298.2,3297.6,3.03249]
[1722363431875,10.42201,3298.2,3297.4,1.96145678]
[1722363432236,3.03217,3298.0,3297.4,1.72800529]
[1722363432438,7.39,3298.2,3297.4,1.72800529]
[1722363432724,3.03241,3297.7,3297.4,1.72800529]
[1722363433714,3.03259,3297.6,3297.4,1.72800529]
[1722363433916,6.0652,3297.5,3297.4,1.72800529]
[1722363434128,6.67172,3297.5,3297.4,1.72800529]
[1722363434837,9.70432,3297.5,3297.4,1.72800529]
[1722363434974,19.14712,3297.5,3297.4,1.72800529]
[1722363435178,16.11452,3297.5,3297.4,1.72800529]
[1722363435389,19.11452,3297.5,3297.4,1.72800529]
[1722363435588,15.71652,3297.5,3297.4,1.72800529]
[1722363435831,12.13392,3297.5,3297.4,1.72800529]
[1722363436373,9.10132,3297.5,3297.4,1.72800529]
[1722363436821,6.63912,3297.5,3297.4,1.72800529]
[1722363437023,6.0326,3297.5,3297.4,1.72800529]
[1722363437190,9.0652,3297.5,3297.4,1.72800529]
[1722363437607,12.0978,3297.5,3297.4,1.72800529]
[1722363438706,12.6478,3297.5,3297.4,1.72800529]
[1722363438939,15.0872,3297.5,3297.4,1.72800529]
[1722363439711,18.4852,3297.5,3297.4,1.72800529]
[1722363439909,15.0872,3297.5,3297.4,1.72800529]
[1722363440850,14.5372,3297.5,3297.4,1.72800529]
[1722363442538,15.0872,3297.5,3297.4,1.72800529]
[1722363443140,18.1198,3297.5,3297.4,1.72800529]
[1722363443343,15.0872,3297.5,3297.4,1.72800529]
[1722363446485,6.0652,3297.5,3297.4,1.72800529]
[1722363446702,3.0326,3297.5,3297.4,1.72800529]
[1722363447045,7.39,3298.2,3297.4,1.72800529]
[1722363447344,3.03215,3298.0,3297.4,1.72800529]
[1722363447554,3.03227,3297.9,3297.5,0.17280053]
[1722363447857,10.422,3298.2,3297.5,0.17280053]
[1722363448077,7.39,3298.2,3297.5,0.17280053]
[1722363448245,10.42201,3298.2,3297.5,0.17280053]
[1722363448446,10.42201,3298.2,3297.5,3.26598574]
[1722363448689,10.42203,3298.2,3297.6,0.8026591]
[1722363448856,3.03217,3298.0,3297.5,0.17280053]
[1722363449992,3.03217,3298.0,3297.4,1.72800529]
[1722363449993,3.03246,3297.7,3297.4,1.72800529]
[1722363450217,3.03248,3297.7,3297.4,1.72800529]
[1722363450588,6.0646,3297.9,3297.4,1.72800529]
[1722363450801,3.03219,3298.0,3297.4,1.72800529]
[1722363450978,10.42195,3298.2,3297.4,2.20408382]
[1722363451181,3.03209,3298.1,3297.4,5.23676382]
[1722363451375,7.39,3298.2,3297.5,3.03259]
[1722363451582,10.422,3298.2,3297.5,3.03254]
[1722363451813,10.422,3298.2,3297.6,0.52366238]
[1722363452420,3.032,3298.2,3297.6,0.52366238]
[1722363452580,3.03205,3298.1,3297.6,0.52366238]
[1722363453005,3.032,3298.2,3297.4,2.26473093]
[1722363453322,6.06402,3298.2,3297.5,3.03252]
[1722363453613,19.87,3298.5,3297.7,3.03235]
[1722363453918,10.42173,3298.5,3297.7,3.03235]
[1722363454123,10.42173,3298.5,3297.8,3.0323]
[1722363454714,3.032,3298.2,3297.5,3.79899509]
[1722363454871,3.03222,3298.0,3297.4,2.20408382]
[1722363455074,3.0322,3298.0,3297.4,1.72800529]
[1722363456414,3.03199,3298.2,3297.4,4.76067529]
[1722363456415,3.03205,3298.1,3297.4,4.76067529]
[1722363456578,3.03193,3298.3,3297.5,3.03259]
[1722363456781,7.39,3298.9,3297.6,35.06064918]
[1722363457026,7.39,3298.9,3298.4,3.03176]
[1722363457233,3.03109,3299.2,3298.5,0.303176]
[1722363457398,10.421,3299.3,3298.5,3.334846]
[1722363457638,7.39,3299.3,3298.6,38.03153]
[1722363457973,7.39,3299.3,3298.9,3.03125]
[1722363458270,7.39,3299.3,3299.0,0.303125]
[1722363458571,10.42094,3299.3,3299.1,35.0]
[1722363458719,3.03079,3299.5,3299.1,35.0]
[1722363458938,3.03062,3299.7,3299.1,35.0]
[1722363459334,7.39,3299.8,3299.1,38.03107]
[1722363459582,7.39,3299.8,3299.2,2.26043713]
[1722363459583,10.42056,3299.8,3299.2,2.26043713]
[1722363460377,10.42056,3299.8,3299.1,35.0]
[1722363460378,3.03077,3299.5,3299.1,35.0]
[1722363460532,3.03058,3299.7,3299.1,35.0]
[1722363460739,3.03077,3299.5,3299.1,35.0]
[1722363460964,7.39,3299.8,3299.1,35.0]
[1722363461256,3.03072,3299.6,3299.1,35.0]
[1722363461452,3.03078,3299.5,3299.1,35.0]
[1722363462150,6.06128,3299.7,3299.1,35.0]
[1722363462365,3.03092,3299.4,3299.1,35.0]
[1722363462693,3.03085,3299.5,3299.1,35.0]
[1722363462983,3.03067,3299.6,3298.8,3.03132]